bitfinex/quotes_ETHUSD_20240618
["timestamp","ask_amount","ask_price","bid_price","bid_amount"]
[1718750239730,2.86804,3486.7,3486.2,2.86845]
[1718750240479,2.3177,3486.8,3486.5,2.86817]
[1718750240783,2.90561604,3486.8,3486.3,2.86835]
[1718750240935,2.86804,3486.7,3486.3,2.86835]
[1718750241142,2.86804,3486.7,3486.0,5.73716]
[1718750241143,2.86813,3486.6,3486.1,2.86846]
[1718750241445,2.8683,3486.4,3485.9,2.86867]
[1718750241796,2.90561604,3486.8,3486.4,2.86826]
[1718750243467,5.77358604,3486.8,3486.1,2.86845]
[1718750243667,2.86812,3486.6,3486.1,2.86852]
[1718750243869,2.86812,3486.6,3486.2,2.86843]
[1718750244071,2.86804,3486.7,3486.2,2.86843]
[1718750244298,0.805371,3486.6,3486.2,2.86843]
[1718750244573,0.805371,3486.6,3485.8,1.726]
[1718750244773,5.15462,3487.1,3486.5,2.8682]
[1718750245343,2.2869,3487.1,3486.7,2.86802]
[1718750245566,2.86748,3487.4,3486.8,2.86794]
[1718750245767,2.86748,3487.4,3486.9,2.86786]
[1718750246159,2.86756,3487.3,3486.9,2.86786]
[1718750246360,2.86777,3487.1,3487.0,0.09605345]
[1718750246578,2.86777,3487.1,3486.6,2.86812]
[1718750246750,0.573547,3487.0,3486.6,2.86812]
[1718750247981,3.441347,3487.0,3486.6,2.86812]
[1718750248187,2.86795,3486.8,3486.7,0.09607426]
[1718750248483,2.86795,3486.8,3486.0,4.59457]
[1718750248484,2.86795,3486.8,3486.4,2.86827]
[1718750248646,3.7484067,3486.8,3486.7,0.09600183]
[1718750248846,3.7484067,3486.8,3486.4,2.86827]
[1718750249056,3.7484067,3486.8,3486.5,0.0960157]
[1718750249653,3.7484067,3486.8,3486.3,2.86835]
[1718750249993,2.86805,3486.7,3486.4,0.09602264]
[1718750250350,3.7484267,3486.8,3486.4,0.09602264]
[1718750250685,0.96849637,3486.7,3486.4,0.09602264]
[1718750250994,3.83655637,3486.7,3486.3,2.86836]
[1718750251196,3.83655637,3486.7,3486.5,0.09602656]
[1718750251482,3.83655637,3486.7,3486.6,0.09601963]
[1718750251646,3.83655637,3486.7,3486.3,2.86836]
[1718750251849,3.83655637,3486.7,3486.4,0.0960335]
[1718750252046,2.86812,3486.6,3486.4,0.0960335]
[1718750252284,3.78809764,3486.6,3486.2,2.86843]
[1718750252504,3.78809764,3486.6,3486.5,0.09602656]
[1718750252815,0.91997764,3486.6,3486.2,2.86843]
[1718750253403,3.78811764,3486.6,3486.3,0.09604043]
[1718750254217,0.91997764,3486.6,3486.3,0.09604043]
[1718750254427,0.91997764,3486.6,3486.3,2.96438043]
[1718750254645,2.86795,3486.8,3486.4,2.86828]
[1718750254985,5.36308,3486.9,3486.5,0.09602656]
[1718750255291,2.86798,3486.8,3486.5,0.09602656]
[1718750255795,2.86804,3486.7,3486.5,0.09602656]
[1718750256190,2.86804,3486.7,3486.3,2.86835]
[1718750256812,0.823106,3486.8,3486.4,0.09601176]
[1718750257113,0.823106,3486.8,3485.9,2.86868]
[1718750257114,2.86834,3486.4,3485.9,2.86868]
[1718750257314,5.21923,3486.5,3486.0,5.86859]
[1718750258202,2.86829,3486.4,3486.0,5.86859]
[1718750258406,3.726677,3486.4,3486.0,5.86859]
[1718750258604,3.726677,3486.4,3485.4,2.86906]
[1718750258812,2.86846,3486.2,3485.8,2.86877]
[1718750259900,4.22313701,3486.4,3485.7,2.86885]
[1718750259901,2.86854,3486.1,3485.7,2.86885]
[1718750260099,2.86854,3486.1,3485.8,3.0]
[1718750260429,2.86847,3486.2,3485.8,3.0]
[1718750262324,2.86847,3486.2,3485.8,5.86877]
[1718750263139,2.86847,3486.2,3485.9,0.09611525]
[1718750263437,0.65740418,3486.3,3485.9,2.96479525]
[1718750263645,0.65740418,3486.3,3486.1,2.86846]
[1718750263940,2.351,3486.5,3486.2,0.09609444]
[1718750264717,5.21921,3486.5,3486.2,0.09609444]
[1718750265806,2.351,3486.5,3486.2,0.09609444]
[1718750266547,2.351,3486.5,3486.3,2.86836]
[1718750266723,2.351,3486.5,3486.3,2.9644475]
[1718750267248,2.3236,3486.8,3486.6,2.86806]
[1718750267944,2.3236,3486.8,3486.7,0.09597648]
[1718750268626,4.06806367,3487.0,3486.7,0.09597648]
[1718750268627,1.20026367,3487.0,3486.9,2.86787]
[1718750268830,2.3236,3487.1,3486.9,2.86787]
[1718750269023,2.3236,3487.1,3487.0,2.86779]
[1718750269219,2.3236,3487.1,3487.0,0.09595568]
[1718750269544,2.70533608,3487.1,3487.0,0.09595568]
[1718750270560,0.38173608,3487.1,3487.0,2.86779]
[1718750270865,1.20026367,3487.3,3487.0,2.96374568]
[1718750271243,1.20026367,3487.2,3487.1,2.86771]
[1718750271452,1.20026367,3487.3,3487.1,2.86771]
[1718750271780,1.5009165,3487.4,3487.1,2.86771]
[1718750271781,1.20026367,3487.4,3487.3,5.73508]
[1718750272072,1.20026367,3487.5,3487.4,2.86746]
[1718750272228,1.20026367,3487.6,3487.5,2.86738]
[1718750272426,2.08433116,3487.6,3487.5,2.86738]
[1718750272665,2.08433116,3487.6,3487.5,2.96315619]
[1718750273025,4.16865872,3487.6,3487.5,2.96315619]
[1718750273357,5.6695722,3487.6,3487.5,2.96315619]
[1718750274330,5.6695722,3487.6,3487.5,0.09577619]
[1718750274752,5.6695722,3487.6,3487.5,2.86738]
[1718750275274,5.6695722,3487.6,3487.5,2.96315619]
[1718750275984,5.6695722,3487.6,3487.5,2.86738]
[1718750276143,5.6695722,3487.6,3487.5,2.96315619]
[1718750276346,3.58524766,3487.6,3487.5,5.83053619]
[1718750276579,2.08433116,3487.6,3487.5,5.83053619]
[1718750276947,3.28664367,3487.6,3487.5,5.83053619]
[1718750277278,2.08433116,3487.6,3487.5,5.83053619]
[1718750277602,1.5009165,3487.8,3487.7,2.86721]
[1718750277871,3.58508415,3487.8,3487.7,2.96278048]
[1718750278369,3.58508415,3487.8,3487.7,5.82999048]
[1718750278370,2.08416765,3487.8,3487.7,5.82999048]
[1718750278563,1.5009165,3487.9,3487.8,2.86713]
[1718750278882,2.08413147,3487.9,3487.8,2.96269355]
[1718750279089,3.58504797,3487.9,3487.8,2.96269355]
[1718750279276,2.08413147,3487.9,3487.8,2.96269355]
[1718750279476,1.5009165,3488.0,3487.9,2.86705]
[1718750279682,8.8709165,3488.1,3488.0,2.86697]
[1718750280005,2.0840212,3488.1,3488.0,5.82872241]
[1718750280310,2.0840212,3488.1,3488.0,2.96175241]
[1718750281265,1.5009165,3488.2,3488.1,8.60067]
[1718750281474,1.20097894,3488.7,3488.6,5.73294]
[1718750281664,1.20097894,3488.9,3488.6,0.0946504]
[1718750281867,1.62392892,3488.9,3488.7,2.86637]
[1718750282088,1.62392892,3488.9,3488.8,2.96094655]
[1718750282305,0.42294998,3488.9,3488.8,2.96094655]
[1718750283087,0.42294998,3488.9,3488.8,0.09463655]
[1718750283262,0.42294998,3488.9,3488.6,2.86647]
[1718750283458,0.42294998,3488.9,3488.7,0.09464347]
[1718750283994,0.42294998,3488.9,3488.8,2.86631]
[1718750284163,0.42294998,3488.9,3488.8,0.09463655]
[1718750284802,0.42294998,3488.9,3488.7,2.86639]
[1718750285117,0.42294998,3488.9,3488.8,0.09463655]
[1718750285958,2.86674,3488.3,3488.1,3.0]
[1718750286157,2.86674,3488.3,3486.3,2.86833]
[1718750286158,2.86705,3487.9,3487.2,2.86762]
[1718750286385,2.86699,3488.0,3487.5,2.86731]
[1718750286912,1.71352094,3488.2,3487.9,2.86703]
[1718750287070,1.71352094,3488.2,3487.2,2.86755]
[1718750287071,3.45967894,3488.4,3488.1,2.86683]
[1718750287275,1.20097894,3488.6,3488.3,2.86671]
[1718750287505,1.20097894,3488.6,3487.9,2.867]
[1718750287506,10.23646,3488.7,3488.1,2.86686]
[1718750287684,11.43743894,3488.7,3488.1,2.86686]
[1718750287889,9.27579464,3488.7,3488.3,2.86672]
[1718750288375,1.90579464,3488.7,3488.1,2.86686]
[1718750288631,2.2587,3488.8,3488.5,2.86653]
[1718750289635,2.2587,3488.8,3488.3,2.86668]
[1718750289636,5.12507,3488.8,3488.3,2.86668]
[1718750289922,2.2587,3488.8,3488.3,2.86668]
[1718750290681,5.12508,3488.8,3488.3,2.86668]
[1718750290916,6.37321189,3488.8,3488.3,2.86668]
[1718750291315,2.86642,3488.7,3488.3,2.86668]
[1718750291516,2.86697,3488.0,3487.5,3.0]
[1718750291701,5.26641,3488.2,3487.4,2.86745]
[1718750291902,2.86673,3488.3,3487.7,2.86721]
[1718750292106,2.86658,3488.5,3488.0,2.86695]
[1718750292479,2.3996,3488.7,3488.1,2.86687]
[1718750292815,5.26601,3488.7,3488.2,2.86674]
[1718750293031,7.06114608,3488.7,3488.2,2.86674]
[1718750293179,7.06114608,3488.7,3488.3,0.09120366]
[1718750293528,4.19473608,3488.7,3488.3,2.86672]
[1718750293828,4.19473608,3488.7,3487.8,1.726]
[1718750293829,2.86656,3488.5,3488.4,0.09119673]
[1718750294179,2.86667,3488.4,3487.9,2.86703]
[1718750294601,2.86691,3488.1,3487.7,2.86714]
[1718750294787,2.86705,3487.9,3487.8,3.0]
[1718750295017,2.86705,3487.9,3487.3,5.86753]
[1718750295018,2.86721,3487.8,3487.3,3.0]
[1718750295333,2.4105,3488.0,3487.6,2.86722]
[1718750295483,2.4105,3488.0,3487.3,2.86754]
[1718750295787,2.4105,3488.0,3487.2,3.0]
[1718750295788,2.86735,3487.6,3487.2,3.0]
[1718750295972,2.86731,3487.6,3487.2,3.0]
[1718750296177,2.86731,3487.6,3487.0,2.86779]
[1718750296178,2.86731,3487.6,3487.1,3.0]
[1718750296716,2.86745,3487.5,3486.8,2.86794]
[1718750296888,2.86764,3487.2,3486.5,2.8682]
[1718750297101,2.86772,3487.1,3486.6,2.86805]
[1718750297406,2.86769,3487.2,3486.7,2.86801]
[1718750297615,2.4125,3487.6,3487.1,2.86763]
[1718750297794,2.86738,3487.5,3487.0,2.86772]
[1718750298183,2.86738,3487.5,3487.1,2.86768]
[1718750298382,3.395368,3487.5,3487.1,2.86768]
[1718750298698,3.395368,3487.5,3487.1,2.8677]
[1718750299217,3.395368,3487.5,3487.0,2.86777]
[1718750302379,2.86747,3487.4,3487.0,2.86777]
[1718750303326,2.8678,3487.0,3486.4,3.0]
[1718750303477,5.15298,3486.9,3486.4,3.0]
[1718750303684,5.15298,3486.9,3486.4,5.86821]
[1718750304999,5.15298,3486.9,3486.5,2.86819]
[1718750305213,5.15298,3486.9,3486.4,3.0]
[1718750305214,2.2851,3486.9,3486.4,3.0]
[1718750305388,0.63538889,3486.8,3486.2,3.0]
[1718750305810,3.50335889,3486.8,3486.3,2.86836]
[1718750305998,3.50335889,3486.8,3486.4,3.0]
[1718750306690,3.50334889,3486.8,3486.4,5.86828]
[1718750306915,2.2851,3486.9,3486.6,2.8681]
[1718750307123,2.2851,3486.9,3486.5,2.86819]
[1718750307323,2.2851,3486.9,3486.4,3.0]
[1718750307525,2.86807,3486.7,3486.3,5.86836]
[1718750308320,2.86807,3486.7,3486.4,0.09237019]
[1718750310230,2.86807,3486.7,3486.2,3.0]
[1718750310415,2.86812,3486.6,3486.5,0.09236325]
[1718750310737,2.86812,3486.6,3486.1,3.0]
[1718750310738,2.86825,3486.5,3486.1,3.0]
[1718750311416,2.86829,3486.4,3486.1,3.0]
[1718750311613,2.86822,3486.5,3486.1,3.0]
[1718750314209,2.86822,3486.5,3486.1,5.86852]
[1718750314412,2.86804,3486.7,3486.1,5.86852]
[1718750314624,3.50336489,3486.8,3486.1,3.0]
[1718750314944,3.50336489,3486.8,3486.3,2.8683]
[1718750315497,3.50336489,3486.8,3486.1,3.0]
[1718750315498,2.2851,3486.9,3486.1,3.0]
[1718750315697,2.2851,3486.9,3486.0,1.726]
[1718750315934,2.2851,3486.9,3486.3,2.86829]
[1718750315935,2.86796,3486.8,3486.3,2.86829]
[1718750317356,5.15298,3486.9,3486.3,2.86829]
[1718750317528,5.15298,3486.9,3486.1,2.86849]
[1718750317529,2.2851,3486.9,3486.6,2.86811]
[1718750317916,2.2851,3486.9,3486.4,2.86828]
[1718750318111,2.86796,3486.8,3486.4,2.86828]
[1718750318352,5.15299,3486.9,3486.4,2.86828]
[1718750318847,2.2851,3486.9,3486.5,2.8682]
[1718750320350,2.2851,3486.9,3486.6,2.86811]
[1718750320534,2.2851,3486.9,3486.3,2.86833]
[1718750320743,2.2851,3486.9,3486.6,2.86811]
[1718750321052,2.4526,3487.2,3486.8,2.86795]
[1718750321564,2.4526,3487.2,3486.9,2.86784]
[1718750321853,2.86772,3487.1,3486.5,2.86818]
[1718750322359,2.86772,3487.1,3486.7,2.86803]
[1718750323362,2.86772,3487.1,3486.8,0.09252344]
[1718750323521,4.04220813,3487.1,3486.8,0.09252344]
[1718750323724,4.04220813,3487.1,3486.7,2.86803]
[1718750323933,4.04220813,3487.1,3486.9,0.09251651]
[1718750324135,4.04220813,3487.1,3486.8,0.09252344]
[1718750324443,4.04220813,3487.1,3486.7,2.86803]
[1718750324615,4.04220813,3487.1,3486.9,0.0923681]
[1718750324817,3.97376259,3487.0,3486.6,2.86811]
[1718750326164,1.10597259,3487.0,3486.7,2.86803]
[1718750326317,2.86773,3487.1,3486.7,2.86803]
[1718750327820,5.81662888,3487.2,3486.8,2.86793]
[1718750328051,5.32025,3487.2,3486.8,2.86793]
[1718750328257,6.52122894,3487.2,3486.8,2.86793]
[1718750328763,6.52120894,3487.2,3486.8,2.86793]
[1718750328971,7.65944331,3487.2,3486.7,2.86803]
[1718750329371,8.15582219,3487.2,3486.7,2.86803]
[1718750330149,4.06868894,3487.1,3486.2,4.59442]
[1718750330355,4.06868894,3487.1,3486.4,0.84]
[1718750330729,3.3138,3487.0,3486.3,3.0]
[1718750330931,2.86809,3486.7,3486.3,3.0]
[1718750331672,2.86809,3486.7,3486.3,5.86835]
[1718750331972,4.06893894,3486.8,3486.4,2.86828]
[1718750333052,4.06893894,3486.8,3486.3,5.86836]
[1718750333574,4.06894894,3486.8,3486.3,3.0]
[1718750333777,1.20097894,3486.7,3486.3,3.0]
[1718750334287,1.20097894,3486.6,3486.3,3.0]
[1718750334575,4.06909894,3486.6,3486.3,3.0]
[1718750334971,4.06909894,3486.6,3486.4,0.09239191]
[1718750336198,1.20097894,3486.5,3486.4,0.09239191]
[1718750337257,6.71593922,3486.5,3486.4,0.09239191]
[1718750337580,2.86841,3486.3,3486.1,3.0]
[1718750337807,1.20172822,3486.2,3485.9,3.0]
[1718750337957,4.07018822,3486.2,3485.8,2.86876]
[1718750338158,1.20172822,3486.1,3485.9,0.09269449]
[1718750338976,1.20172822,3486.0,3485.9,0.09269449]
[1718750339376,1.50216027,3486.1,3485.9,0.09269449]
[1718750339577,1.20253121,3486.0,3485.9,0.09269449]
[1718750340147,3.58737007,3486.0,3485.9,0.09269449]
[1718750341976,6.45598007,3486.0,3485.9,0.09269449]
[1718750342162,12.64008484,3486.0,3485.9,0.09269449]
[1718750342366,10.35467582,3486.0,3485.6,2.86894]
[1718750342553,5.30881,3486.0,3485.9,0.09285019]
[1718750342752,9.47936917,3486.0,3485.9,0.09285019]
[1718750343078,2.8687,3485.9,3485.5,2.86902]
[1718750343280,1.20365124,3485.7,3485.6,3.0]
[1718750344675,1.20365124,3485.7,3485.5,5.869]
[1718750346080,1.20365124,3485.6,3485.5,5.869]
[1718750346476,1.20365124,3485.6,3485.5,11.60704]
[1718750346672,1.20365124,3485.7,3485.6,5.73788]
[1718750346991,1.50456405,3485.9,3485.8,10.33234]
[1718750347157,2.4857,3487.0,3486.4,2.86828]
[1718750347158,1.50456405,3486.6,3486.4,2.86828]
[1718750347358,1.50456405,3486.8,3486.6,2.86812]
[1718750347558,1.50456405,3486.9,3486.8,2.86795]
[1718750347759,3.58922658,3486.9,3486.8,2.86795]
[1718750348177,5.67391923,3486.9,3486.8,2.86795]
[1718750348383,5.67391481,3486.9,3486.8,2.86795]
[1718750348699,3.58922658,3486.9,3486.8,5.7359]
[1718750348860,1.50456405,3487.0,3486.9,5.73574]
[1718750349053,5.67373377,3487.0,3486.9,5.73574]
[1718750349260,4.16916972,3487.0,3486.9,2.86787]
[1718750350416,4.16916972,3487.0,3486.9,8.60361]
[1718750350697,1.50398293,3487.1,3487.0,8.60337]
[1718750350905,1.80052706,3487.5,3487.1,3.0]
[1718750350906,1.50398293,3487.5,3487.1,3.0]
[1718750351073,1.50398293,3487.5,3486.9,0.40123569]
[1718750351074,1.50398293,3487.5,3487.2,2.86763]
[1718750351270,1.50398293,3487.6,3487.4,2.86746]
[1718750351495,2.08424105,3487.5,3487.4,5.73492]
[1718750351659,1.5032399,3487.6,3487.5,2.86738]
[1718750351863,3.58747918,3487.6,3487.5,2.86738]
[1718750352400,3.76366271,3487.8,3487.6,2.8673]
[1718750352401,1.5032399,3487.7,3487.6,2.8673]
[1718750352608,3.58747141,3487.7,3487.6,2.8673]
[1718750353294,3.58747141,3487.7,3487.6,2.95981153]
[1718750353504,3.58747141,3487.7,3487.6,5.82711153]
[1718750353863,3.58747141,3487.7,3487.6,2.95981153]
[1718750354100,1.5032399,3487.7,3487.6,2.95981153]
[1718750354472,3.8304399,3487.8,3487.7,2.86721]
[1718750354791,3.8304399,3487.8,3487.7,0.0925046]
[1718750355113,7.63256217,3487.8,3487.3,2.86753]
[1718750355397,1.20138579,3487.6,3487.5,2.86738]
[1718750355567,1.20138579,3487.6,3487.5,2.95989846]
[1718750356075,1.50173286,3487.6,3487.5,0.09251846]
[1718750356262,1.50173286,3487.6,3487.0,2.86778]
[1718750356263,7.07014618,3487.6,3487.0,2.86778]
[1718750356463,1.20132456,3487.3,3487.1,3.0]
[1718750356797,1.20132456,3487.2,3486.9,3.0]
[1718750356965,1.20132456,3487.2,3487.0,2.86777]
[1718750357165,1.20132456,3487.2,3487.1,3.0]
[1718750358706,1.20132456,3487.6,3487.4,2.86739]
[1718750358911,1.50173286,3487.7,3487.3,2.86753]
[1718750358912,1.20132456,3487.5,3487.3,2.86753]
[1718750362606,1.20132456,3487.6,3487.3,2.86753]
[1718750365420,1.20132456,3487.6,3487.4,2.86746]
[1718750367021,1.88421685,3487.7,3487.5,2.86738]
[1718750368327,1.88421685,3487.7,3487.6,0.09221098]
[1718750368547,3.66152456,3487.8,3487.6,2.95951098]
[1718750369521,2.4602,3487.8,3487.6,2.95951098]
[1718750369721,1.20132456,3487.9,3487.8,2.86713]
[1718750369903,2.492,3488.1,3487.8,3.70713]
[1718750370104,2.492,3488.1,3488.0,2.86697]
[1718750370504,2.492,3488.1,3488.0,2.95896868]
[1718750370918,2.492,3488.1,3488.0,0.09199868]
[1718750371847,2.492,3488.1,3488.0,2.95896868]
[1718750372510,3.50402456,3488.4,3488.0,2.95896868]
[1718750372715,2.3027,3488.4,3488.2,2.8668]
[1718750372972,3.50402456,3488.4,3488.2,2.8668]
[1718750373120,2.3027,3488.4,3488.1,2.86687]
[1718750373322,3.50402456,3488.4,3488.3,0.09181505]
[1718750373617,5.50732366,3488.4,3488.1,2.86687]
[1718750374722,4.3059991,3488.4,3488.1,2.86687]
[1718750375940,4.3059991,3488.4,3488.2,0.09182198]
[1718750377165,2.3027,3488.4,3488.2,0.09182198]
[1718750378524,2.3027,3488.4,3488.2,2.95861198]
[1718750381536,2.3027,3488.4,3488.2,0.09182198]
[1718750389364,3.50402456,3488.4,3488.2,0.09182198]
[1718750391361,1.20132456,3488.3,3488.2,0.09182198]
[1718750392378,1.49800523,3488.4,3488.3,5.73344]
[1718750392583,1.49800523,3488.5,3488.4,2.86664]
[1718750392735,3.58179265,3488.5,3488.4,2.86664]
[1718750392938,1.49800523,3488.5,3488.4,2.95823103]
[1718750393148,2.08372395,3488.5,3488.4,2.95823103]
[1718750393346,1.49800523,3488.6,3488.4,2.95823103]
[1718750393748,1.49800523,3488.6,3488.5,2.86656]
[1718750393980,3.58175448,3488.6,3488.5,2.86656]
[1718750394274,3.58175448,3488.6,3488.5,2.95814411]
[1718750395253,1.49800523,3488.7,3488.5,2.95814411]
[1718750396085,2.08362125,3488.6,3488.5,2.95814411]
[1718750396369,1.49800523,3488.7,3488.5,2.95814411]
[1718750396933,2.08362284,3488.6,3488.5,2.95814411]
[1718750397252,1.20177108,3489.2,3489.0,2.86615]
[1718750397449,1.20177108,3489.2,3489.1,6.57212]
[1718750397639,1.20177108,3489.4,3489.2,2.86591]
[1718750397842,1.20177108,3489.3,3489.2,2.86591]
[1718750398067,3.82260523,3489.5,3489.3,2.95728762]
[1718750398270,1.20061367,3489.4,3489.3,2.8659]
[1718750398454,1.20061367,3489.4,3489.2,2.95730455]
[1718750398455,2.08322987,3489.4,3489.2,2.86597]
[1718750398654,1.2006486,3489.3,3489.2,2.86597]
[1718750399057,1.49800523,3489.4,3489.2,2.86597]
[1718750399345,1.20036444,3489.3,3489.2,2.86597]
[1718750399865,1.20036444,3489.4,3489.2,2.86597]
[1718750400242,1.20036444,3489.4,3489.3,2.8659]
[1718750401479,1.20036444,3489.4,3489.2,2.86597]
[1718750401983,5.86145918,3489.3,3488.6,2.86643]
[1718750402190,1.20037736,3489.1,3488.7,3.70637]
[1718750402850,4.06639736,3489.2,3488.7,3.70637]
[1718750403057,1.20037736,3489.1,3488.7,3.70637]
[1718750403346,1.20037736,3489.1,3488.8,2.8663]
[1718750404585,1.20037736,3489.0,3488.8,2.86629]
[1718750404790,2.2801,3489.1,3488.8,2.86629]
[1718750404791,3.48047736,3489.1,3488.8,2.86629]
[1718750404995,3.48047736,3489.1,3488.7,2.86637]
[1718750405554,3.48047736,3489.1,3488.1,4.724]
[1718750405555,2.2801,3488.6,3488.1,2.86682]
[1718750405777,2.2801,3488.6,3488.2,2.86679]
[1718750406249,1.20037736,3488.7,3488.6,2.86647]
[1718750406445,1.20037736,3488.8,3488.5,2.86653]
[1718750406710,1.20037736,3488.8,3488.5,0.84]
[1718750406878,1.20037736,3488.8,3488.1,2.86685]
[1718750407084,1.20037736,3488.7,3488.3,2.86666]
[1718750407384,1.20037736,3488.7,3488.3,3.70666]
[1718750408267,1.20037736,3488.6,3488.3,3.70666]
[1718750408970,1.20037736,3488.6,3488.5,0.84]
[1718750409191,3.48297736,3488.9,3488.5,3.70656]
[1718750409489,3.48297736,3488.9,3488.6,2.86646]
[1718750409690,1.20037736,3488.9,3488.6,2.86646]
[1718750410155,1.20037736,3489.0,3488.8,2.86631]
[1718750410353,1.20037736,3489.0,3488.9,2.86623]
[1718750410576,1.20037736,3489.1,3489.0,2.86615]
[1718750410778,1.20037736,3489.1,3488.8,2.8663]
[1718750410998,1.20037736,3489.0,3488.8,2.8663]
[1718750411402,1.20037736,3489.0,3488.9,0.0880575]
[1718750411773,1.20037736,3489.0,3487.2,12.14]
[1718750412010,4.06654736,3489.0,3488.9,0.0880575]
[1718750412278,2.4948,3489.0,3488.9,0.0880575]
[1718750412499,2.4948,3489.0,3488.6,3.70644]
[1718750412707,1.20099415,3488.9,3488.5,2.86652]
[1718750412911,1.20099415,3488.9,3488.8,2.86631]
[1718750413340,1.20099415,3488.9,3488.8,0.08806443]
[1718750414338,3.99509432,3489.0,3488.8,0.08806443]
[1718750414537,1.20133518,3488.9,3488.8,0.08806443]
[1718750414730,3.99509432,3489.0,3488.8,0.08806443]
[1718750414930,1.20132836,3488.9,3488.8,0.08806443]
[1718750415132,1.20132836,3488.9,3488.8,2.95437443]
[1718750415457,1.2014627,3488.9,3488.8,2.95437443]
[1718750415740,1.2014627,3488.9,3488.8,6.77341187]
[1718750415935,1.50029432,3489.1,3488.8,6.77341187]
[1718750415936,1.2014627,3489.1,3489.0,2.86615]
[1718750416311,1.2014627,3489.1,3489.0,5.82028923]
[1718750416535,1.2014627,3489.2,3489.1,2.86606]
[1718750416736,6.0036425,3489.7,3489.1,5.43006]
[1718750416737,1.2014627,3489.5,3489.1,5.43006]
[1718750416937,1.50169144,3489.7,3489.1,5.43006]
[1718750416938,1.2014627,3489.7,3489.3,2.564]
[1718750417145,1.2014627,3489.9,3489.8,2.86549]
[1718750417529,3.97905387,3490.1,3489.9,2.86541]
[1718750417530,1.2014627,3490.0,3489.9,2.86541]
[1718750417844,1.2014627,3490.0,3489.9,2.95319624]
[1718750418441,2.4778,3490.1,3489.9,2.95319624]
[1718750418442,3.6792627,3490.1,3489.9,2.95319624]
[1718750420032,1.2014627,3490.2,3490.0,0.84]
[1718750420257,1.2014627,3490.3,3490.2,2.86516]
[1718750420567,1.2014627,3490.4,3490.2,2.95275597]
[1718750420773,1.2014627,3490.4,3490.2,0.08759597]
[1718750421581,1.2014627,3490.4,3489.7,2.86555]
[1718750421891,1.1989385,3490.2,3489.9,2.8654]
[1718750422349,1.1989385,3490.3,3490.0,2.95285851]
[1718750422890,1.1989385,3490.3,3490.0,0.08754851]
[1718750423885,2.86516,3490.2,3490.0,0.08754851]
[1718750424247,1.1989385,3490.2,3489.8,2.86549]
[1718750424606,1.1989385,3490.2,3489.9,0.08755543]
[1718750424884,4.0641085,3490.2,3489.9,0.08755543]
[1718750425443,4.0641085,3490.2,3489.7,2.86556]
[1718750425665,4.0641085,3490.2,3489.8,0.08756236]
[1718750425865,4.0641085,3490.2,3489.8,2.86546]
[1718750426079,4.0641085,3490.2,3489.9,0.08755543]
[1718750426564,2.86517,3490.2,3489.7,2.86556]
[1718750426807,2.8651,3490.3,3490.0,0.08754851]
[1718750427008,2.8651,3490.3,3489.8,2.86548]
[1718750427009,4.0639485,3490.4,3489.8,2.86548]
[1718750427169,2.86501,3490.4,3490.1,0.08719895]
[1718750427507,2.86501,3490.4,3490.2,0.08719203]
[1718750427867,2.86501,3490.4,3489.8,2.86548]
[1718750428136,2.86501,3490.4,3489.9,0.08721279]
[1718750429139,2.86509,3490.3,3489.9,0.08721279]
[1718750429899,2.86518,3490.2,3489.9,0.08721279]
[1718750430211,3.6642385,3490.5,3489.9,0.08721279]
[1718750430212,2.8651,3490.3,3489.9,0.08721279]
[1718750430400,2.8651,3490.3,3490.0,0.08720587]
[1718750430608,2.8651,3490.3,3489.8,2.86549]
[1718750430837,2.8651,3490.3,3489.9,0.08721279]
[1718750431199,2.8651,3490.3,3489.9,2.95261279]
[1718750431712,2.86501,3490.4,3489.9,2.98615172]
[1718750432532,4.0639485,3490.4,3489.9,2.98615172]
[1718750433463,6.5291785,3490.5,3490.0,2.8653]
[1718750433630,6.52811598,3490.5,3490.1,0.12070058]
[1718750434468,1.1989385,3490.4,3490.1,0.12070058]
[1718750434623,6.52811598,3490.5,3490.1,0.12070058]
[1718750435132,5.32917748,3490.5,3490.1,0.12070058]
[1718750435338,5.32917748,3490.5,3490.1,2.98594058]
[1718750435339,3.66317598,3490.5,3490.1,2.98594058]
[1718750435651,3.66317598,3490.5,3490.1,0.12070058]
[1718750435652,6.52809598,3490.5,3490.1,0.12070058]
[1718750436230,3.66317598,3490.5,3490.1,2.98594058]
[1718750436430,6.52808598,3490.5,3490.1,2.98594058]
[1718750436653,1.1989385,3490.4,3490.1,0.12070058]
[1718750438019,6.82681536,3490.5,3490.1,0.12070058]
[1718750438020,1.1989385,3490.3,3490.1,0.12070058]
[1718750443873,1.1989385,3490.2,3490.1,0.12070058]
[1718750444417,1.1989385,3490.2,3489.9,2.86541]
[1718750444692,1.1989385,3490.2,3490.0,0.12058589]
[1718750444841,6.9294185,3490.1,3490.0,0.12058589]
[1718750445043,2.86539,3490.0,3489.4,2.86582]
[1718750445243,1.19946394,3489.9,3489.6,2.86565]
[1718750445489,6.82816799,3490.1,3489.6,2.86565]
[1718750445490,1.19946394,3490.0,3489.7,0.12056988]
[1718750445783,1.19946394,3489.9,3489.7,0.12056988]
[1718750446442,1.19946394,3489.9,3489.5,2.86572]
[1718750446776,4.06487394,3489.9,3489.6,0.12063545]
[1718750447188,4.06487394,3489.9,3489.4,2.8658]
[1718750447357,1.19946394,3489.8,3489.7,0.12062757]
[1718750447556,1.19946394,3489.8,3489.4,2.8658]
[1718750447756,1.19946394,3489.8,3489.7,0.12062757]
[1718750447957,1.19946394,3489.8,3489.4,2.8658]
[1718750448218,1.19946394,3489.8,3489.7,0.12062757]
[1718750448505,4.06495394,3489.8,3489.7,0.12062757]
[1718750448679,4.06495394,3489.8,3489.4,2.8658]
[1718750448866,1.19946394,3489.8,3489.5,0.12064334]
[1718750449067,1.19946394,3489.8,3489.3,2.86589]
[1718750449279,2.86558,3489.7,3489.4,0.12077019]
[1718750449995,1.19946394,3489.8,3489.4,2.98658019]
[1718750450325,1.19946394,3489.8,3489.5,2.86573]
[1718750450490,1.19946394,3489.8,3489.5,2.9864923]
[1718750450687,1.19946394,3489.8,3489.5,0.1207623]
[1718750451414,2.86565,3489.6,3489.5,0.1207623]